bitfinex-derivatives/quotes_BNBF0:USTF0_20250425
["timestamp","ask_amount","ask_price","bid_price","bid_amount"]
[1745586477639,0.28747501,607.06,604.31,0.30364542]
[1745586479341,1.25222267,607.07,604.31,0.30364542]
[1745586479640,0.28745839,607.05,604.31,0.30364542]
[1745586480639,0.28745839,607.05,604.32,0.30364542]
[1745586480840,0.28745839,607.05,604.33,0.30364542]
[1745586481035,0.28745839,607.05,604.31,0.30364542]
[1745586481239,0.28745839,607.05,604.32,0.30364542]
[1745586481437,0.28745839,607.05,604.33,0.30364542]
[1745586481635,0.28745839,607.05,604.31,0.30364542]
[1745586481940,0.28745839,607.05,604.32,0.30353283]
[1745586482243,0.28745839,607.05,604.33,0.30353283]
[1745586482441,1.25222267,607.06,604.34,0.30353283]
[1745586482741,0.28744296,607.04,604.35,0.30353283]
[1745586482941,0.28744296,607.04,604.36,0.30353283]
[1745586483136,0.28744296,607.04,604.37,0.30353283]
[1745586483337,0.28744296,607.04,604.38,0.30353423]
[1745586483537,0.28744296,607.04,604.39,0.30353423]
[1745586483743,1.25222267,606.96,604.4,0.30353423]
[1745586483940,1.25222267,606.96,604.41,0.30353423]
[1745586484236,1.25222267,606.96,604.42,0.30353423]
[1745586484439,1.25222267,606.96,604.43,0.30353423]
[1745586484637,1.25222267,606.96,604.32,0.30353423]
[1745586484841,1.25222267,606.96,604.33,0.30353531]
[1745586485041,1.25222267,606.96,604.34,0.30353531]
[1745586485239,1.25222267,606.96,604.35,0.30353531]
[1745586485440,1.25222267,606.96,604.36,0.30353531]
[1745586485740,0.28745364,606.95,604.37,0.30353531]
[1745586485940,0.28745364,606.95,604.38,0.30353531]
[1745586486240,0.28745364,606.95,604.34,0.30353531]
[1745586486440,0.28745364,606.95,604.35,0.30353531]
[1745586486642,1.25222267,606.92,604.36,0.30353531]
[1745586486939,1.25222267,606.92,604.33,0.28745364]
[1745586486940,1.25222267,606.92,604.37,0.30353531]
[1745586487142,1.25222267,606.92,604.38,0.30353531]
[1745586487441,1.25222267,606.92,604.39,0.30353531]
[1745586487642,1.25222267,606.92,604.4,0.30353531]
[1745586487942,1.25222267,606.92,604.41,0.3034815]
[1745586488142,1.25222267,606.92,604.34,0.3034815]
[1745586488342,1.25222267,606.92,604.35,0.3034815]
[1745586488642,1.25222267,606.92,604.36,0.3034815]
[1745586488838,1.25222267,606.92,604.37,0.3034815]
[1745586489043,1.25222267,606.92,604.38,0.3034815]
[1745586489243,1.25222267,606.92,604.33,0.28745364]
[1745586489442,1.25222267,606.92,604.34,0.30347888]
[1745586489644,1.25222267,606.92,604.35,0.30347888]
[1745586489846,0.28745364,606.95,604.36,0.30347888]
[1745586490039,0.28745364,606.95,604.37,0.30347888]
[1745586490243,0.28745364,606.95,604.38,0.30347888]
[1745586490443,0.28745364,606.95,604.39,0.30347888]
[1745586490741,0.28745364,606.95,604.4,0.30347888]
[1745586490947,0.28745364,606.95,604.41,0.30347888]
[1745586491146,0.28745364,606.95,604.42,0.30347888]
[1745586491347,0.28745364,606.95,604.43,0.30347888]
[1745586491647,0.28745364,606.95,604.44,0.30347888]
[1745586491847,0.28745364,606.95,604.45,0.30347888]
[1745586492147,0.28745364,606.95,604.46,0.30347888]
[1745586492347,0.28745364,606.95,604.47,0.30347888]
[1745586492548,0.28745364,606.95,604.34,0.30347888]
[1745586492749,0.28745364,606.95,604.35,0.30347888]
[1745586493047,0.28745364,606.95,604.36,0.30347888]
[1745586493347,0.28745364,606.95,604.37,0.30347888]
[1745586493546,0.28745364,606.95,604.38,0.30347888]
[1745586493747,0.28745364,606.95,604.39,0.30347888]
[1745586493941,0.28745364,606.95,604.4,0.30347888]
[1745586494145,0.28745364,606.95,604.41,0.30347888]
[1745586494346,1.25222267,607.21,604.42,0.30347888]
[1745586494544,1.25222267,607.21,604.43,0.30347888]
[1745586494843,1.25222267,607.21,604.44,0.30347888]
[1745586495148,1.25222267,607.26,604.45,0.30347888]
[1745586495344,1.25222267,607.26,604.36,0.28738124]
[1745586495549,1.25222267,607.26,604.37,0.30348559]
[1745586495750,0.28737175,607.25,604.37,0.30348559]
[1745586497453,1.25222267,607.39,604.37,0.30348559]
[1745586497649,0.28737175,607.24,604.38,0.30348559]
[1745586497950,1.25222267,607.39,604.39,0.30348559]
[1745586498144,1.25222267,607.39,604.4,0.30348559]
[1745586498347,1.25222267,607.39,604.37,0.30348559]
[1745586498545,1.25222267,607.39,604.38,0.30347915]
[1745586498750,0.28735632,607.38,604.37,0.30347915]
[1745586498946,0.28735632,607.38,604.38,0.30347915]
[1745586499149,0.28735632,607.38,604.37,0.30347915]
[1745586502054,1.25222267,607.36,604.37,0.30347915]
[1745586503755,0.28735988,607.35,604.36,0.28735988]
[1745586503955,0.28735988,607.35,604.37,0.30347915]
[1745586504651,0.28735988,607.35,604.38,0.982]
[1745586504859,0.28735988,607.35,604.39,0.30347915]
[1745586505762,0.28735988,607.35,604.38,0.982]
[1745586505960,0.28735988,607.35,604.39,0.30353565]
[1745586506362,1.25222267,607.42,604.39,0.30353565]
[1745586506562,0.28738836,607.34,604.39,0.30353565]
[1745586506857,1.25222267,607.42,604.39,0.30353565]
[1745586507561,1.25222267,607.42,604.4,1.549]
[1745586507760,1.25222267,607.42,604.41,0.30353565]
[1745586508263,1.25222267,607.17,604.41,0.30353565]
[1745586509663,0.28741565,607.16,604.41,0.30353565]
[1745586510263,1.25222267,606.88,604.41,0.30353565]
[1745586510558,1.25222267,606.88,604.4,1.549]
[1745586510758,1.25222267,606.88,604.41,0.30352857]
[1745586512164,1.25222267,606.88,604.4,1.549]
[1745586512464,1.25222267,606.88,604.41,0.30352857]
[1745586513568,1.25222267,606.81,604.42,1.05161859]
[1745586513765,1.25222267,606.81,604.43,0.30352857]
[1745586515170,1.25222267,606.81,604.42,1.05161859]
[1745586515368,1.25222267,606.81,604.43,0.30352175]
[1745586515668,0.28744177,606.8,604.43,0.30352175]
[1745586515866,1.25222267,606.79,604.56,1.05161859]
[1745586516070,1.25222267,606.79,604.57,0.30352175]
[1745586518269,1.25222267,606.79,604.58,1.085]
[1745586518470,1.25222267,606.65,604.64,1.05161859]
[1745586518668,1.25222267,606.65,604.65,0.30352175]
[1745586519670,0.28743465,606.64,604.65,0.30352175]
[1745586519870,0.28743465,606.64,604.64,1.05161859]
[1745586520071,0.28743465,606.64,604.65,0.30351718]
[1745586520666,0.28743465,606.64,604.64,1.05161859]
[1745586521273,0.28743465,606.64,604.59,1.05161859]
[1745586521571,1.25222267,606.68,604.59,1.05161859]
[1745586522672,0.28743702,606.67,604.59,1.05161859]
[1745586523576,0.28743702,606.67,604.58,1.085]
[1745586524375,1.25222267,606.86,604.58,1.085]
[1745586524772,0.28741684,606.85,604.58,1.085]
[1745586525278,0.28741684,606.85,604.59,1.478]
[1745586525679,1.25222267,606.83,604.59,1.478]
[1745586528177,1.25222267,606.85,604.59,1.478]
[1745586528678,0.28743108,606.84,604.59,1.478]
[1745586530377,1.25222267,606.85,604.59,1.478]
[1745586530673,0.28743108,606.83,604.59,1.478]
[1745586533378,1.25222267,606.92,604.59,1.478]
[1745586533879,1.53967394,606.82,604.59,1.478]
[1745586534077,1.25222267,606.82,604.59,1.478]
[1745586534680,0.28746314,606.81,604.59,1.478]
[1745586536380,1.25222267,606.82,604.59,1.478]
[1745586536581,1.25222267,606.62,604.59,1.478]
[1745586537478,1.25222267,606.62,604.6,1.462]
[1745586537676,0.28746314,606.61,604.6,1.462]
[1745586537880,0.28746314,606.61,604.61,1.467]
[1745586539383,1.25222267,606.65,604.62,1.252]
[1745586539681,0.2874572,606.6,604.62,1.252]
[1745586542387,1.25222267,606.65,604.62,1.252]
[1745586542687,0.28744652,606.59,604.62,1.252]
[1745586543590,0.28744652,606.59,604.6,0.28744652]
[1745586546992,0.28744652,606.59,604.61,2.608]
[1745586547192,0.28744652,606.59,604.61,3.683]
[1745586547595,0.28744652,606.59,604.62,1.303]
[1745586547793,1.25222267,606.6,604.62,1.303]
[1745586549193,1.25222267,606.6,604.63,0.30351673]
[1745586549994,1.25222267,606.63,604.63,0.30351673]
[1745586552596,1.25222267,606.33,604.64,1.05161859]
[1745586552794,1.25222267,606.33,604.65,0.30351673]
[1745586555596,1.25222267,606.52,604.65,0.30351673]
[1745586556596,1.25222267,606.52,604.64,1.05161859]
[1745586556798,1.25222267,606.52,604.65,0.3034731]
[1745586558597,1.25222267,606.89,604.65,0.3034731]
[1745586558892,1.25222267,606.89,604.66,0.3034731]
[1745586559093,1.25222267,606.89,604.63,0.3034731]
[1745586560899,1.25222267,606.91,604.63,0.3034731]
[1745586561495,1.25222267,606.91,604.64,1.436]
[1745586561698,1.25222267,606.91,604.65,0.3034731]
[1745586563403,1.25222267,606.93,604.65,0.3034731]
[1745586565101,1.25222267,606.93,604.64,1.436]
[1745586565395,1.25222267,606.93,604.65,0.30351955]
[1745586565796,1.25222267,606.81,604.65,0.30351955]
[1745586568004,1.25222267,606.55,604.65,0.30351955]
[1745586570401,1.25222267,606.55,604.64,1.436]
[1745586570601,1.25222267,606.64,604.67,1.05161859]
[1745586570798,1.25222267,606.64,604.68,0.3034671]
[1745586571501,1.25222267,606.64,604.68,1.5804671]
[1745586571705,1.25222267,606.64,604.69,0.3034671]
[1745586572306,1.25222267,606.76,604.69,0.3034671]
[1745586575108,1.25222267,606.74,604.69,0.3034671]
[1745586575807,1.25222267,606.74,604.68,1.277]
[1745586577112,1.25222267,606.72,604.68,1.277]
[1745586577407,1.25222267,606.72,604.68,2.334]
[1745586579816,2.13051774,607.56,604.68,2.334]
[1745586579817,1.25222267,606.87,604.68,2.334]
[1745586582518,1.25222267,606.79,604.68,2.334]
[1745586583317,1.25222267,606.79,604.69,0.30347936]
[1745586584919,2.13051774,607.94,604.69,0.30347936]
[1745586584920,1.25222267,606.76,604.69,0.30347936]
[1745586586118,1.25222267,606.76,604.68,1.277]
[1745586586612,1.25222267,606.76,604.69,0.30348257]
[1745586586913,1.25222267,606.62,604.69,0.30348257]
[1745586587315,1.25222267,606.62,604.7,1.418]
[1745586587513,1.25222267,606.62,604.71,0.30348257]
[1745586587715,1.25222267,606.62,604.7,1.418]
[1745586587918,1.25222267,606.62,604.71,0.30348289]
[1745586589319,1.25222267,606.62,604.7,1.418]
[1745586589521,1.25222267,606.62,604.71,0.30348148]
[1745586590818,1.25222267,606.62,604.72,1.134]
[1745586591018,1.25222267,606.62,604.73,0.30348148]
[1745586592521,1.25222267,606.55,604.73,0.30348148]
[1745586594023,1.25222267,606.55,604.72,2.18561859]
[1745586594224,1.25222267,606.55,604.73,0.30345559]
[1745586595026,1.25222267,606.75,604.73,0.30345559]
[1745586595528,1.25222267,606.75,604.72,1.134]
[1745586597927,1.25222267,606.51,604.72,1.134]
[1745586599127,1.25222267,606.51,604.73,1.143]
[1745586600430,1.25222267,606.77,604.73,1.143]
[1745586603332,2.13051774,607.87,604.74,1.127]
[1745586603333,1.25222267,606.9,604.74,1.127]
[1745586605532,1.25222267,606.95,604.74,1.127]
[1745586607034,1.25222267,606.95,604.75,1.404]
[1745586608435,1.25222267,606.95,604.76,1.25]
[1745586608735,1.25222267,606.86,604.76,1.25]
[1745586610737,1.25222267,606.66,604.76,1.25]
[1745586612039,1.25222267,606.65,604.76,1.25]
[1745586614734,1.25222267,606.6,604.76,1.25]
[1745586618041,1.25222267,606.7,604.76,1.25]
[1745586621443,1.25222267,606.65,604.76,1.25]
[1745586623943,1.25222267,606.77,604.76,1.25]
[1745586626444,1.25222267,606.71,604.76,1.25]
[1745586629844,1.25222267,606.63,604.76,1.25]
[1745586632347,1.25222267,606.63,604.77,1.627]
[1745586632543,1.25222267,606.07,604.77,1.627]
[1745586635151,1.25222267,606.14,604.77,1.627]
[1745586636750,1.25222267,606.14,604.77,1.61982712]
[1745586636954,1.25222267,606.14,604.74,1.127]
[1745586638655,1.25222267,606.24,604.74,1.127]
[1745586641052,2.13051774,607.48,604.74,1.127]
[1745586641053,1.25222267,606.06,604.74,1.127]
[1745586643550,1.25222267,606.38,604.74,1.127]
[1745586646360,1.25222267,606.46,604.74,1.127]
[1745586648561,1.25222267,606.52,604.74,1.127]
[1745586650258,1.25222267,606.52,604.36,1.443]
[1745586651260,1.25222267,606.72,604.36,1.443]
[1745586652664,1.25222267,606.72,604.37,1.471]
[1745586653364,1.25222267,606.72,604.38,1.12]
[1745586653564,1.25222267,606.69,604.38,1.12]
[1745586656668,1.25222267,606.34,604.38,1.12]
[1745586657772,1.25222267,606.34,604.39,1.286]
[1745586658869,1.25222267,606.45,604.39,1.286]
[1745586661875,1.25222267,606.48,604.39,1.286]
[1745586663275,1.25222267,606.48,604.4,1.132]
[1745586664580,1.25222267,606.38,604.4,1.132]
[1745586666179,1.25222267,606.84,604.4,1.132]
[1745586668574,1.25222267,606.8,604.4,1.132]
[1745586670982,1.25222267,606.77,604.4,1.132]
[1745586672882,1.25222267,606.84,604.4,1.132]
[1745586676082,2.13051774,607.98,604.4,1.132]
[1745586676083,1.25222267,606.8,604.4,1.132]
[1745586676282,1.25222267,606.8,604.4,2.24]
[1745586678285,1.25222267,606.52,604.4,2.24]
[1745586679383,1.25222267,606.52,604.41,0.30364497]
[1745586680386,1.25222267,606.52,604.42,0.30364126]
[1745586680681,1.25222267,606.52,604.4,2.24]
[1745586680682,1.25222267,606.52,604.43,0.30364126]
[1745586680882,1.25222267,606.52,604.41,0.30364126]
[1745586681186,1.25222267,606.52,604.4,2.24]
[1745586681386,1.25222267,606.52,604.4,1.108]
[1745586683286,1.25222267,606.82,604.4,1.108]
[1745586684986,1.25222267,606.82,604.4,2.228]
[1745586685784,1.25222267,606.9,604.4,2.228]
[1745586688286,1.25222267,606.96,604.4,2.228]
[1745586689485,1.25222267,606.96,604.41,0.30358159]
[1745586691492,1.25222267,606.7,604.41,0.30358159]
[1745586693792,1.25222267,606.7,604.41,1.77258159]
[1745586693992,1.25222267,606.7,604.41,1.469]
[1745586694195,1.25222267,606.7,604.42,0.30351047]
[1745586694696,1.25222267,606.77,604.42,0.30351047]
[1745586694991,1.25222267,606.77,604.41,1.469]
[1745586694992,1.25222267,606.77,604.43,0.30351047]
[1745586695192,1.25222267,606.77,604.44,0.30351047]
[1745586695397,1.25222267,606.77,604.42,0.30351047]
[1745586695596,1.25222267,606.77,604.43,0.30351047]
[1745586695796,1.25222267,606.77,604.42,0.30351047]
[1745586695998,1.25222267,606.77,604.43,0.30351047]
[1745586696196,1.25222267,606.77,604.44,0.30351047]
[1745586696393,1.25222267,606.77,604.45,0.30351047]
[1745586696597,1.25222267,606.77,604.46,0.30351047]
[1745586696795,1.25222267,606.77,604.41,1.469]
[1745586696796,1.25222267,606.77,604.42,0.30351047]
[1745586697099,1.25222267,606.77,604.41,1.469]
[1745586697399,1.25222267,606.63,604.52,1.05161859]
[1745586697599,1.25222267,606.63,604.53,0.30350433]
[1745586698800,1.25222267,606.63,604.54,0.3035049]
[1745586699095,1.25222267,606.63,604.55,0.3035049]
[1745586699294,1.25222267,606.63,604.56,0.3035049]
[1745586699497,1.25222267,606.63,604.57,0.3035049]
[1745586699693,1.25222267,606.63,604.58,0.3035049]
[1745586699894,1.25222267,606.63,604.59,0.3035049]
[1745586700196,1.25222267,606.63,604.6,0.3035049]
[1745586700401,1.25222267,606.63,604.53,0.3035049]
[1745586700604,1.25222267,606.74,604.53,0.3035049]
[1745586700802,1.25222267,606.74,604.5,0.3035049]
[1745586701102,1.25222267,606.74,604.51,0.3035049]
[1745586701304,1.25222267,606.74,604.52,0.3035049]
[1745586701501,1.25222267,606.74,604.5,0.3035049]
[1745586701803,1.25222267,606.74,604.49,1.05161859]
[1745586701804,1.25222267,606.74,604.51,0.30350471]
[1745586702003,1.25222267,606.74,604.5,0.30350471]
[1745586702201,1.25222267,606.74,604.51,0.30350471]
[1745586702404,1.25222267,606.74,604.5,0.30350471]
[1745586703806,1.25222267,606.72,604.5,1.3551233]
[1745586704006,1.25222267,606.72,604.51,0.30350471]
[1745586706307,1.25222267,606.76,604.45,0.30350471]
[1745586706607,1.25222267,606.76,604.46,0.30350471]
[1745586706807,1.25222267,606.76,604.47,0.30350471]
[1745586707105,1.25222267,606.76,604.48,0.30350471]
[1745586707303,1.25222267,606.76,604.49,0.30350471]
[1745586707502,1.25222267,606.76,604.45,0.30350471]
[1745586707808,1.25222267,606.76,604.44,1.05161859]
[1745586708007,1.25222267,606.76,604.45,0.30351307]
[1745586708611,1.25222267,606.76,604.46,1.167]
[1745586708807,1.25222267,606.76,604.47,0.30351307]
[1745586709306,1.25222267,606.85,604.46,1.167]
[1745586709514,1.25222267,606.85,604.47,0.3035132]
[1745586709807,1.25222267,606.85,604.48,1.418]
[1745586710007,1.25222267,606.85,604.49,0.3035132]
[1745586710414,1.25222267,606.85,604.5,1.518]
[1745586710613,1.25222267,606.85,604.51,0.3035132]
[1745586711518,1.25222267,606.8,604.51,0.3035132]
[1745586713318,1.25222267,606.76,604.51,0.3035132]
[1745586713818,1.25222267,606.76,604.5,1.518]
[1745586714018,1.25222267,606.76,604.51,0.30351747]
[1745586715320,1.25222267,606.76,604.5,1.518]
[1745586715516,1.25222267,606.76,604.51,0.30351775]
[1745586715713,1.25222267,606.56,604.51,1.35513634]
[1745586715914,1.25222267,606.56,604.52,0.30351775]
[1745586718221,1.25222267,606.57,604.55,1.05161859]
[1745586718421,1.25222267,606.57,604.56,0.30351775]
[1745586720725,1.25222267,606.57,604.55,1.05161859]
[1745586721025,1.25222267,606.53,604.59,1.05161859]
[1745586723526,1.25222267,606.63,604.5,1.518]
[1745586723727,1.25222267,606.63,604.51,0.30362825]
[1745586723924,1.25222267,606.63,604.5,1.518]
[1745586725228,1.25222267,606.63,604.51,0.30363115]
[1745586725528,1.25222267,606.63,604.5,1.518]
[1745586726433,1.25222267,606.63,604.51,0.30364484]
[1745586726824,1.25222267,606.63,604.5,1.518]
[1745586727123,1.25222267,606.63,604.51,0.30363467]
[1745586727831,1.25222267,606.3,604.51,0.30363467]
[1745586728031,1.25222267,606.3,604.5,1.518]
[1745586730826,1.25222267,606.42,604.5,1.518]
[1745586733830,1.25222267,606.5,604.5,1.518]
[1745586737227,1.25222267,606.51,604.5,1.518]
[1745586740138,1.25222267,606.59,604.5,1.518]
[1745586741735,1.25222267,606.59,604.51,1.379]
[1745586743235,1.25222267,606.5,604.51,1.379]
[1745586745541,1.25222267,606.41,604.51,1.379]
[1745586746140,0.28759261,606.4,604.51,1.379]
[1745586749545,1.25222267,606.41,604.51,1.379]
[1745586749845,0.28763777,606.39,604.51,1.379]
[1745586751744,1.25222267,606.34,604.51,1.379]
[1745586753748,0.2876675,606.33,604.51,1.379]
[1745586754247,0.2876675,606.33,604.5,1.518]
[1745586754644,1.53989017,606.33,604.5,1.518]
[1745586755548,1.25222267,606.33,604.5,1.518]
[1745586755847,0.28766987,606.32,604.5,1.518]
[1745586757450,1.25222267,606.25,604.5,1.518]
[1745586758849,0.28767939,606.24,604.5,1.518]
[1745586762150,1.25222267,606.07,604.5,1.518]
[1745586764551,1.25222267,606.07,604.47,1.468]
[1745586764855,0.28770079,606.06,604.47,1.468]
[1745586765249,0.28770079,606.06,604.17,1.551]
[1745586765250,0.28770079,606.06,603.68,1.05161859]
[1745586765856,0.28770079,606.06,603.69,0.2877912]
[1745586767556,1.25222267,606.13,603.7,1.686]
[1745586768257,1.25222267,606.32,603.7,1.686]
[1745586768859,0.28777335,606.31,603.7,1.686]
[1745586769955,0.28777335,606.31,603.71,1.19]
[1745586770558,1.25222267,606.33,603.71,1.19]
[1745586771158,1.25222267,606.33,603.72,2.819]
[1745586771758,0.28777692,606.32,603.72,2.819]
[1745586772958,1.25222267,606.31,603.72,2.819]
[1745586773753,0.2877793,606.3,603.72,2.819]
[1745586775564,1.25222267,606.25,603.72,2.819]
[1745586776767,0.28779834,606.24,603.72,2.819]
[1745586779266,1.25222267,605.87,603.72,2.819]
[1745586779764,0.28784357,605.86,603.72,2.819]
[1745586782069,1.25222267,605.8,603.74,1.05161859]
[1745586783874,0.28784952,605.79,603.74,1.05161859]
[1745586785577,1.25222267,605.8,603.74,1.05161859]
[1745586785778,1.25222267,605.91,603.73,1.05161859]
[1745586786978,0.28781143,605.9,603.73,1.05161859]
[1745586787778,0.28781143,605.9,603.72,3.10681143]
[1745586790087,0.28781143,605.9,603.76,1.05161859]
[1745586791588,0.28781143,605.9,603.77,1.146]
[1745586792487,0.28781143,605.9,603.78,1.05161859]
[1745586795087,0.28781143,605.9,603.77,2.305]
[1745586795088,0.28781143,605.9,603.79,1.05161859]
[1745586797484,1.25222267,606.07,603.84,1.05161859]
[1745586798890,0.28777692,606.06,603.84,1.05161859]
[1745586799690,1.25222267,606.02,603.8,0.28777692]
[1745586800590,1.25222267,606.02,603.77,3.35661859]
[1745586800890,0.2877912,606.01,603.8,0.2877912]
[1745586802188,0.2877912,606.01,603.8,1.9667912]
[1745586802687,1.25222267,605.93,603.8,1.9667912]
[1745586803090,1.25222267,605.93,603.8,3.6237912]
[1745586803592,1.25222267,605.93,603.8,3.336]
[1745586803987,0.28781262,605.92,603.8,3.62381262]
[1745586805194,1.25222267,605.87,603.8,3.62381262]
[1745586806594,1.25222267,605.87,603.8,3.336]
[1745586807195,1.25222267,605.87,603.8,4.573]
[1745586807898,0.28783405,605.86,603.8,4.86083405]
[1745586808098,1.25222267,605.72,603.8,4.86083405]
[1745586809594,1.25222267,605.72,603.8,4.573]
[1745586810295,1.25222267,605.98,603.8,4.573]
[1745586810799,0.28782572,605.97,603.8,4.573]
[1745586811000,0.28782572,605.97,603.8,4.86082572]
[1745586812608,1.25222267,605.98,603.8,4.573]
[1745586812900,0.28782572,605.96,603.8,4.86082572]
[1745586815600,1.25222267,606.01,603.8,4.573]
[1745586815896,0.28782215,605.95,603.8,4.573]
[1745586816898,0.28782215,605.95,603.8,4.86082572]
[1745586818603,1.25222267,605.89,603.8,4.86082572]
[1745586821510,1.25222267,605.89,603.81,0.30393931]
[1745586821704,1.25222267,605.87,603.81,0.30393931]
[1745586822204,1.25222267,605.87,603.8,3.20382572]
[1745586824312,1.25222267,605.85,603.8,3.20382572]
[1745586824610,1.25222267,605.85,603.8,4.211]
[1745586824909,0.2878531,605.84,603.8,4.4988531]
[1745586827607,1.25222267,606.1,603.8,4.211]
[1745586828811,0.28782334,606.09,603.8,4.211]
[1745586829012,0.28782334,606.09,603.8,4.49882334]
[1745586830614,1.25222267,606.11,603.8,4.211]
[1745586831813,0.28783762,606.1,603.8,4.211]
[1745586832316,1.25222267,606.07,603.8,4.211]
[1745586834515,1.25222267,605.76,603.8,4.211]
[1745586835310,1.25222267,605.76,603.81,0.30397818]
[1745586835614,1.25222267,605.76,603.8,1.295]
[1745586836814,1.25222267,605.56,603.8,1.295]
[1745586838518,1.25222267,605.56,603.8,2.72]
[1745586839018,1.25222267,605.56,603.8,4.266]
[1745586839422,0.28789715,605.57,603.8,4.266]
[1745586839621,1.25222267,605.73,603.8,4.266]
[1745586841020,0.28789596,605.72,603.8,4.266]
[1745586842622,1.25222267,605.73,603.8,4.266]
[1745586843224,1.25222267,605.56,603.8,4.266]
[1745586843822,0.28793526,605.55,603.8,4.266]
[1745586845624,2.13051774,606.23,603.8,4.266]
[1745586845625,1.25222267,605.66,603.8,4.266]
[1745586846824,0.28788048,605.65,603.8,4.266]
[1745586848726,1.25222267,605.79,603.8,4.266]
[1745586849827,0.28784357,605.78,603.8,4.266]
[1745586851529,1.25222267,606.09,603.8,4.266]
[1745586852724,0.28780786,606.08,603.8,4.266]
[1745586854631,1.25222267,606.06,603.8,4.266]
[1745586855532,1.25222267,606.06,603.8,5.609]
[1745586856226,1.25222267,606.06,603.81,0.30390868]
[1745586857133,1.25222267,605.95,603.81,0.30390868]
[1745586857532,1.25222267,605.95,603.82,0.30389227]
[1745586857732,1.25222267,605.95,603.8,4.314]
[1745586857733,1.25222267,605.95,603.81,0.30389227]
[1745586857934,1.25222267,605.95,603.8,4.314]
[1745586858133,1.25222267,605.95,603.8,2.768]
[1745586858833,0.28781262,605.94,603.8,2.768]
[1745586859435,0.28781262,605.94,603.8,4.405]
[1745586860634,1.25222267,606.85,603.8,4.405]
[1745586861231,1.25222267,606.85,603.8,6.131]
[1745586861832,0.28770555,606.84,603.8,6.131]
[1745586863635,1.25222267,606.89,603.8,6.131]
[1745586864837,0.28771268,606.88,603.8,6.131]
[1745586865536,1.25222267,606.41,603.8,6.131]
[1745586866833,0.28776978,606.4,603.8,6.131]
[1745586867737,0.28776978,606.4,603.81,0.30395372]
[1745586867938,1.25222267,605.88,603.81,0.30395372]
[1745586868336,1.25222267,605.88,603.8,6.131]
[1745586868532,1.25222267,605.88,603.81,0.30395854]
[1745586868734,1.25222267,605.88,603.8,6.131]
[1745586870744,1.25222267,606.29,603.8,6.131]
[1745586870942,0.28784952,605.87,603.8,6.131]
[1745586871140,1.25222267,606.29,603.8,6.131]
[1745586872444,0.28780072,606.28,603.8,6.131]
[1745586874544,1.25222267,606.26,603.8,6.131]
[1745586875847,0.28780429,606.25,603.8,6.131]
[1745586878748,0.28780429,606.25,603.81,0.30390478]
[1745586878950,0.28780429,606.25,603.82,0.3039047]
[1745586879152,1.25222267,605.97,603.83,0.3039047]
[1745586879353,1.25222267,605.97,603.81,0.3039047]
[1745586879552,1.25222267,605.97,603.82,0.3039047]
[1745586879752,1.25222267,605.97,603.81,0.3039047]
[1745586880051,1.25222267,605.97,603.82,0.3039047]
[1745586880247,1.25222267,605.97,603.83,0.3039047]
[1745586880553,1.25222267,605.97,603.84,0.3039047]
[1745586880751,1.25222267,605.97,603.85,0.3039047]
[1745586880948,1.25222267,605.97,603.86,0.3039047]
[1745586881152,1.25222267,605.97,603.81,0.3039047]
[1745586881452,1.25222267,605.97,603.82,0.3039047]
[1745586881753,1.25222267,605.97,603.83,0.3039047]
[1745586881952,0.28778168,605.96,603.81,0.3039047]
[1745586882748,0.28778168,605.96,603.81,1.5939047]
[1745586882953,0.28778168,605.96,603.82,0.3039047]
[1745586883452,0.28778168,605.96,603.83,0.30384563]
[1745586883755,0.28778168,605.96,603.84,0.30384563]
[1745586883953,0.28778168,605.96,603.85,0.30384563]
[1745586884154,0.28778168,605.96,603.82,0.30384563]
[1745586884354,0.28778168,605.96,603.83,0.30384563]
[1745586884555,0.28778168,605.96,603.82,0.30384563]
[1745586884751,1.25222267,606.06,603.83,0.30384563]
[1745586885054,1.25222267,606.06,603.81,1.29]
[1745586885055,1.25222267,605.85,603.87,1.05161859]
[1745586885255,1.25222267,605.85,603.88,0.30384563]
[1745586886159,1.25222267,605.85,603.89,1.12]
[1745586887853,0.28779239,605.84,603.89,1.12]
[1745586890662,1.25222267,605.99,603.89,1.12]
[1745586890962,0.28777573,605.83,603.89,1.12]
[1745586891155,1.25222267,605.99,603.89,1.12]
[1745586891357,1.25222267,606.47,603.9,0.30387173]
[1745586892057,0.28771149,606.46,603.9,0.30387173]
[1745586892363,0.28771149,606.46,603.91,0.30386781]
[1745586892558,0.28771149,606.46,603.9,0.30386781]